[Event "2nd Late Dr Abul K C Chess-ch A 2022"]
[Site "Dhaka"]
[Date "2022.07.03"]
[Round "1.1"]
[White "Rahman, Ziaur"]
[Black "Jamal Uddin"]
[Result "1-0"]
[ECO "D06"]
[WhiteElo "2424"]
[BlackElo "2081"]
[Annotator "TA"]
[PlyCount "89"]
[EventDate "2022.07.03"]
[EventCountry "BAN"]
[SourceTitle "playchess.com"]
[Source "ChessBase"]
[SourceQuality "1"]
[TimeControl "5400+30"]

{[%evp 10,89,33,45,57,39,37,42,62,63,77,66,92,72,71,67,63,68,160,98,86,100,101,101,94,94,79,83,180,174,220,135,234,227,214,241,282,281,226,45,56,40,46,43,95,0,0,0,79,66,58,23,75,100,126,77,184,181,186,186,308,300,468,454,529,529,512,512,511,529,515,506,489,472,29974,29975,29972,5255,29997,29998,29998,29999]} 1. d4 {[%emt 0:00:20]} d5 {[%emt 0:01:12]} 2. c4 {[%emt 0:00:23]} Nf6 {[%emt 0:01:02]} 3. cxd5 {[%emt 0:00:36]} Nxd5 {[%emt 0:01:04]} 4. e4 {[%emt 0:00:16]} Nf6 {[%emt 0:02:20]} 5. Nc3 {[%emt 0:04:55]} e5 {[%emt 0:01:53]} 6. Nf3 {[%emt 0:02:55]} exd4 {[%emt 0:02:06] D06: Queen's Gambit: Symmetrical and Baltic Defences.} 7. Qxd4 {[%emt 0:00:43]} Qxd4 {[%emt 0:01:11]} 8. Nxd4 {[%emt 0:00:03]} Bb4 {[%emt 0:01:43] White is slightly better.} 9. f3 {[%emt 0:00:07]} a6 {[%emt 0:00:49]} 10. Bf4 {[%emt 0:00:25] [#]} c6 $146 {[%emt 0:01:42]} ({Predecessor:} 10... Bxc3+ 11. bxc3 c6 12. Rb1 O-O 13. Bxb8 Rxb8 14. Nxc6 Ra8 15. Nd4 b5 16. Be2 Bd7 {1-0 (46) Rios Filho,H (2152)-De Almeida,R (1839) Rio de Janeiro 2016}) 11. O-O-O {[%emt 0:00:52]} O-O {[%emt 0:01:17]} 12. Na4 {[%emt 0:01:22] aiming for Nb6.} Nbd7 {[%emt 0:02:14] Prevents Nb6.} 13. a3 {[%emt 0:00:59]} Nh5 {[%emt 0:05:25]} (13... Be7 $14) 14. Bc7 {[%emt 0:02:29]} (14. Be3 $142 $1 Ba5 15. g4) 14... Be7 $16 {[%emt 0:01:59]} 15. Nf5 {[%emt 0:14:20]} Bg5+ {[%emt 0:02:50]} 16. f4 {[%emt 0:03:20] 0x0.000862834f79dp-1022s more active pieces.} Nxf4 {[%emt 1:09:43]} (16... Bxf4+ $2 17. Bxf4 Nxf4 18. Ne7+ Kh8 19. Nxc8 $18) 17. h4 $36 {[%emt 1:04:55][%cal Bh2h4,Bh4g5][%mdl 2080] White is in control.} Nd3+ {[%emt 0:00:00]} 18. Kc2 {[%emt 0:00:00]} Nf2 {[%emt 0:00:00]} (18... Bd8 $16 {was necessary.}) 19. hxg5 $18 {[%emt 0:00:00][%cal Od1d4] Hoping for Rd4!} b5 {[%emt 0:00:00]} (19... Nxd1 $142 20. Ne7+ (20. Kxd1 b5 $16) 20... Kh8) 20. Ne7+ {[%emt 0:00:00][%cal Bf5e7,Be7c8,Bc8b6][%mdl 32]} Kh8 {[%emt 0:00:00] [#]} 21. Nxc8 $1 {[%emt 0:00:00][%cal Od1d7]} Nxd1 {[%emt 0:00:00]} 22. Ncb6 {[%emt 0:00:00]} ({Worse is} 22. Kxd1 Raxc8 23. Bd6 Rfd8 $17) 22... Nxb6 {[%emt 0:00:00]} 23. Nxb6 {[%emt 0:00:00]} ({Stronger than} 23. Bxb6 bxa4 24. Kxd1 Rfb8 $14) 23... Ra7 {[%emt 0:00:00]} 24. Bf4 {[%emt 0:00:00]} ({And not} 24. Kxd1 Rxc7 25. a4 Rd8+ 26. Ke2 a5 27. axb5 cxb5 $17) ({White must play} 24. Bd6 $18 Nf2 25. Bxf8 Nxh1 26. Be2) 24... Nf2 $14 {[%emt 0:00:00][%csl LRe4,LRh1]} 25. Rh4 {[%emt 0:00:00]} Nxe4 {[%emt 0:00:00]} 26. Bd3 {[%emt 0:00:00]} f5 {[%emt 0:00:00]} (26... Re8 $14) 27. a4 {[%emt 0:00:00]} ({White should try} 27. gxf6 $1 $16 Nxf6 28. Bd6) 27... Re8 {[%emt 0:00:00]} 28. a5 {[%emt 0:00:00]} g6 {[%emt 0:00:00]} (28... Rae7 $11) 29. Be3 $1 $16 {[%emt 0:00:00]} Rae7 {[%emt 0:00:00]} 30. g4 {[%emt 0:00:00]} (30. Bxe4 $5 Rxe4 31. Rxe4 Rxe4 32. Kd3 $11) 30... fxg4 {[%emt 0:00:00]} (30... f4 $11 31. Bxf4 Rf8 32. Bxe4 Rxe4) 31. Rxg4 {[%emt 0:00:00]} Kg8 {[%emt 0:00:00][%cal Oe4f6] [#]} 32. Bd4 {[%emt 0:00:00] Prevents Nf6.} ({White should play} 32. Nd7 $1 {[%mdl 512] And now Rxe4 would win.} Rxd7 33. Bxe4) 32... Re6 {[%emt 0:00:00]} (32... Nd6 $16) 33. b4 $18 {[%emt 0:00:00][%mdl 1024] White has strong compensation.} R8e7 {[%emt 0:04:40] [#]} 34. Kb2 $1 {[%emt 0:00:00] Bc2 is the strong threat.} Kf7 {[%emt 0:03:01]} (34... Nd6 {was called for.} 35. Bc5 Rb7) 35. Bc2 {[%emt 0:00:00]} Nd2 {[%emt 0:00:47]} (35... Ke8 {might work better.} 36. Nc8 Rd7) 36. Bc5 {[%emt 0:00:00]} Re8 {[%emt 0:00:37]} 37. Rf4+ {[%emt 0:00:00]} Kg8 {[%emt 0:00:15]} 38. Nd7 {[%emt 0:00:00]} Nc4+ {[%emt 0:01:40]} 39. Kc3 {[%emt 0:00:00]} Rd8 {[%emt 0:00:00]} 40. Nf6+ {[%emt 0:00:00]} Kg7 {[%emt 0:00:00]} 41. Ng4 {[%emt 0:00:00] Inhibits Re5.} Kg8 {[%emt 0:00:55]} (41... Re2 $2 42. Bd4+ Rxd4 43. Rxd4 $18) (41... Re1 $18 42. Bd4+ Rxd4 43. Rxd4 Kf7 44. Rd7+ Ke6) 42. Nh6+ {[%emt 0:01:47]} Kg7 {[%emt 0:00:20]} 43. Bd4+ {[%emt 0:00:19]} Rxd4 {[%emt 0:00:29]} 44. Rf7+ {[%emt 0:00:19]} Kh8 {[%emt 0:00:06]} 45. Rf8+ {[%emt 0:00:18] Weighted Error Value: White=0.17 (very precise) /Black=0.66} 1-0

[Event "2nd Late Dr Abul K C Chess-ch A 2022"]
[Site "Dhaka"]
[Date "2022.07.03"]
[Round "1.2"]
[White "Md, Sariatullah"]
[Black "Mohammad Fahad, Rahman"]
[Result "0-1"]
[ECO "B85"]
[WhiteElo "2057"]
[BlackElo "2396"]
[Annotator "TA"]
[PlyCount "94"]
[EventDate "2022.07.03"]
[EventCountry "BAN"]
[SourceTitle "playchess.com"]
[Source "ChessBase"]
[SourceQuality "1"]
[TimeControl "5400+30"]

{[%evp 27,94,-6,4,-25,18,14,55,9,82,69,87,-109,-91,-93,-109,-85,-89,-141,-82,-116,-101,-170,-166,-159,-66,-71,-84,-79,-60,-57,-67,-67,-85,-74,-70,-67,-68,-59,-57,-57,-41,-85,-82,-88,-77,-91,-59,-89,-93,-98,-98,-104,-55,-68,-36,-134,-143,-351,-351,-708,-708,-1072,-1060,-2575,-1969,-29995,-29996,-29997,-29998]} 1. e4 {[%emt 0:00:03]} c5 {[%emt 0:00:19]} 2. Nf3 {[%emt 0:00:07]} d6 {[%emt 0:00:06]} 3. d4 {[%emt 0:00:06]} cxd4 {[%emt 0:00:02]} 4. Nxd4 {[%emt 0:00:09]} Nf6 {[%emt 0:00:10]} 5. Nc3 {[%emt 0:00:06]} Nc6 {[%emt 0:00:07]} 6. Bc4 {[%emt 0:00:47]} Qb6 {[%emt 0:02:14]} 7. Nb3 {[%emt 0:02:45]} e6 {[%emt 0:00:09]} 8. Be3 {[%emt 0:00:20]} Qc7 {[%emt 0:00:02]} 9. O-O {[%emt 0:03:31]} a6 {[%emt 0:02:05]} 10. a4 {[%emt 0:00:26]} b6 {[%emt 0:02:54]} 11. Be2 {[%emt 0:02:27]} Be7 {[%emt 0:00:51]} 12. f4 {[%emt 0:00:26]} O-O {[%emt 0:00:22]} 13. Bf3 {[%emt 0:02:46]} Bb7 {[%emt 0:02:49]} 14. Qe1 {[%emt 0:01:13]} Rab8 {[%emt 0:06:36]} 15. g4 {[%emt 0:07:30] B85: Sicilian Scheveningen: 6 Be2 a6, lines with early Be3.} Rfe8 {[%emt 0:16:25][%cal Od6d5]} 16. Qf2 {[%emt 0:08:36]} Ba8 {[%emt 0:11:40][%cal Od6d5] [#]} (16... d5 {looks sharper.} 17. Bxb6 Qxf4 18. Be3 Qc7) 17. Rae1 $146 {[%emt 0:03:20]} (17. g5 $14) ({Predecessor:} 17. g5 Nd7 18. Bg2 Bf8 19. Qh4 Nb4 20. Rf2 Nc5 21. Nd4 g6 22. Rd1 Bg7 23. Rfd2 Rbd8 24. Bf2 {0-1 (40) Nagy,E (2304)-Szabo,Z (2460) Balatonlelle 2006}) 17... b5 {[%emt 0:04:59]} (17... d5 $11) 18. axb5 $16 {[%emt 0:02:19]} axb5 {[%emt 0:00:02][%cal Ba6b5,Bb5b4][%mdl 32]} 19. Nd4 $2 {[%emt 0:07:00]} (19. g5 $16 {keeps the pressure on.} Nd7 20. Be2) 19... Nxd4 $17 20. Bxd4 {[%emt 0:00:06]} b4 {[%emt 0:09:35]} 21. g5 {[%emt 0:04:39]} Nd7 {[%emt 0:02:03]} ({Of course not} 21... bxc3 $6 22. gxf6 e5 23. Bxc3 (23. fxe7 exd4 24. bxc3 dxc3 $17) 23... Bxf6 24. Qg2 $15) (21... e5 {keeps more tension.} 22. gxf6 exd4 23. Nd5 Bxd5 24. fxe7 Bc4) 22. Nb1 {[%emt 0:06:19]} ({White should try} 22. Na4) 22... Bc6 {[%emt 0:12:26]} (22... e5 $142 23. fxe5 Nxe5) 23. Rd1 {[%emt 0:04:02]} Bb5 {[%emt 0:02:20]} 24. Rfe1 {[%emt 0:00:21]} (24. Be2 $17 {might work better.}) 24... e5 $1 $19 {[%emt 0:01:40]} 25. Be3 {[%emt 0:03:56]} d5 {[%emt 0:01:04]} (25... exf4 $17 26. Bxf4 Ne5) 26. exd5 $15 {[%emt 0:05:05]} exf4 {[%emt 0:00:14]} 27. Ba7 {[%emt 0:00:37] [#] Black must now prevent Rxe7.} Ne5 $1 {[%emt 0:04:03][%cal Bd7e5,Be5c4,Bc4e3][%mdl 32]} 28. Bxb8 {[%emt 0:10:56]} Rxb8 {[%emt 0:00:50]} 29. Kh1 {[%emt 0:03:38]} Bc5 {[%emt 0:00:17]} 30. Qg2 {[%emt 0:01:03] [#]} Nc4 $1 {[%emt 0:00:56]} 31. Nd2 {[%emt 0:03:01]} Ne3 {[%emt 0:01:04] Black is more active.} 32. Rxe3 {[%emt 0:00:03]} fxe3 {[%emt 0:01:14]} 33. Ne4 {[%emt 0:00:05] aiming for d6.} Bd6 {[%emt 0:02:15]} 34. Re1 {[%emt 0:05:03]} Bf4 {[%emt 0:01:59] This bishop pair is nice.} 35. d6 {[%emt 0:02:45]} Qc8 {[%emt 0:01:08]} 36. Bg4 {[%emt 0:03:28]} Qf8 {[%emt 0:05:02]} 37. Qf3 {[%emt 0:01:04]} Bxd6 {[%emt 0:00:19]} 38. Qxe3 {[%emt 0:00:56]} Bc7 {[%emt 0:02:06]} 39. Bf3 {[%emt 0:02:06]} Bb6 {[%emt 0:00:14] Prevents Qc5.} (39... Re8 $17 40. Qa7 Be5) 40. Qf4 {[%emt 0:01:14]} Rd8 {[%emt 0:00:18]} 41. Ng3 {[%emt 0:02:59]} ({White should play} 41. h4 $15) 41... Qc5 $17 {[%emt 0:00:45]} 42. Qe5 $2 {[%emt 0:00:48] This move loses the game for White.} (42. Bg2 $17) 42... Qf2 $19 {[%emt 0:02:20][%cal Rf2f3]} 43. Bd5 {[%emt 0:01:24]} (43. Bg2 Bc7 44. Qe7) 43... g6 {[%emt 0:00:47] ...Re8 is the strong threat.} (43... Rxd5 $2 {[#] leads to mate.} 44. Qe8+ $3 {[%mdl 512]} Bxe8 45. Rxe8#) 44. Bg2 {[%emt 0:02:09]} Re8 {[%emt 0:00:43]} 45. Qxe8+ {[%emt 0:00:40]} Bxe8 {[%emt 0:00:01]} 46. Rxe8+ {[%emt 0:00:14]} Kg7 {[%emt 0:00:03][%csl Gb6][%cal Rf2g1]} 47. Ne2 {[%emt 0:00:10]} Qe1+ {[%emt 0:00:07] Weighted Error Value: White=0.79/Black=0.16 (very precise)} 0-1

[Event "2nd Late Dr Abul K C Chess-ch A 2022"]
[Site "Dhaka"]
[Date "2022.07.03"]
[Round "1.3"]
[White "Zia, Tahsin Tajwar"]
[Black "Sacchu, Afzal Hossain"]
[Result "1-0"]
[ECO "E04"]
[WhiteElo "2307"]
[BlackElo "2057"]
[Annotator "TA"]
[PlyCount "46"]
[EventDate "2022.07.03"]
[EventCountry "BAN"]
[SourceTitle "playchess.com"]
[Source "ChessBase"]
[SourceQuality "1"]
[TimeControl "5400+30"]

{[%evp 15,46,36,56,48,77,77,111,58,58,71,66,58,72,52,152,150,267,256,266,195,257,241,263,237,344,348,351,318,345,0,521,495,3134]} 1. d4 {[%emt 0:00:04]} Nf6 {[%emt 0:00:15]} 2. c4 {[%emt 0:00:23]} e6 {[%emt 0:00:32]} 3. g3 {[%emt 0:00:07]} d5 {[%emt 0:00:53]} 4. Bg2 {[%emt 0:00:06]} dxc4 {[%emt 0:00:51]} 5. Nf3 {[%emt 0:00:18]} c5 {[%emt 0:00:42]} 6. O-O {[%emt 0:00:10]} Nc6 {[%emt 0:00:47]} 7. Ne5 {[%emt 0:02:15]} Nxe5 {[%emt 0:02:22]} 8. dxe5 {[%emt 0:00:08]} Nd5 {[%emt 0:02:11]} 9. Na3 {[%emt 0:01:46] E04: Open Catalan: 5 Nf3.} b6 {[%emt 0:04:25]} 10. Nxc4 {[%emt 0:11:58]} Bb7 {[%emt 0:01:47] [#]} 11. a3 $146 {[%emt 0:05:36] White is more active.} ({White should try} 11. Qb3 $16) ({Predecessor:} 11. Qa4+ Qd7 12. Qxd7+ Kxd7 13. a3 Rd8 14. Rd1 Kc8 15. e4 Nc7 16. Bg5 Rd4 17. Rxd4 cxd4 {1-0 (56) Machlowski,S (2154)-Pietruszewski,M (2027) Krakow 2009}) 11... b5 $14 {[%emt 0:10:28]} 12. Nd6+ {[%emt 0:03:44]} Bxd6 {[%emt 0:02:34]} 13. exd6 {[%emt 0:00:03]} O-O {[%emt 0:01:34]} (13... Qxd6 $2 14. e4 $18) 14. e4 {[%emt 0:02:02]} Nf6 {[%emt 0:01:33] [#]} (14... Nb6 $14) 15. Bg5 $1 $16 {[%emt 0:11:43]} Qb6 {[%emt 0:01:40]} (15... Rb8 $16 16. e5 Bxg2 17. Kxg2 h6) 16. Bxf6 $18 {[%emt 0:04:45]} gxf6 {[%emt 0:03:44]} 17. Qg4+ {[%emt 0:07:16]} Kh8 {[%emt 0:00:18]} 18. Qf4 {[%emt 0:00:09]} Kg7 {[%emt 0:04:09]} 19. e5 {[%emt 0:01:01]} fxe5 {[%emt 0:05:18]} (19... f5 {might work better.} 20. Qg5+ (20. Qh4 f6 $16) 20... Kh8 21. Bxb7 Qxb7 22. Qf6+ Kg8 23. Qg5+ Kh8 24. Qf6+ Kg8) 20. Qg5+ {[%emt 0:00:38]} (20. Qxe5+ f6 21. Qxe6 Bxg2 22. Kxg2 Rad8 $16) 20... Kh8 {[%emt 0:00:17] [#]} 21. Qf6+ $1 {[%emt 0:00:07]} ({Less strong is} 21. Qxe5+ f6 22. Qxe6 Rae8 $16) 21... Kg8 {[%emt 0:00:38]} 22. Bf3 {[%emt 0:47:11]} (22. Qxe5 Bxg2 23. Kxg2 Qb7+ 24. Kg1 Qd5 $16) (22. Rfe1 $18 Qd8 23. Qxd8 Rfxd8 24. Bxb7) 22... Bc6 $2 {[%mdl 8192]} (22... Bxf3 $11 23. Qg5+ Kh8 24. Qf6+ Kg8 25. Qg5+ Kh8 26. Qf6+ Kg8) 23. Bxc6 {[%emt 0:00:00]} Qb7 {[%emt 0:00:32] Weighted Error Value: White=0.22 (precise) /Black=0.95} (23... Qxc6 $142 24. Rfe1 (24. Qxe5 Qd5 $16) 24... e4) 1-0

[Event "2nd Late Dr Abul K C Chess-ch A 2022"]
[Site "Dhaka"]
[Date "2022.07.03"]
[Round "1.4"]
[White "Shawket Bin, Osman Shaon"]
[Black "Mohammad Minhaz Uddin"]
[Result "0-1"]
[ECO "E27"]
[WhiteElo "2053"]
[BlackElo "2260"]
[Annotator "TA"]
[PlyCount "86"]
[EventDate "2022.07.03"]
[EventCountry "BAN"]
[SourceTitle "playchess.com"]
[Source "ChessBase"]
[SourceQuality "1"]
[TimeControl "5400+30"]

{[%evp 17,86,12,31,9,17,-52,-33,-89,-96,-92,-100,-87,-91,-120,-118,-218,0,-287,-297,-316,-301,-524,-508,-497,-469,-1068,-682,-729,-578,-721,-721,-710,-706,-705,-715,-637,-576,-1247,-200,-194,-186,-188,-191,-184,-193,-160,-123,-544,-523,-529,-517,-489,-162,-159,-143,-173,-166,-182,-184,-171,-146,-233,-281,-931,-928,-1082,-1063,-952,-947,-729,-695]} 1. d4 {[%emt 0:00:07]} Nf6 {[%emt 0:00:07]} 2. c4 {[%emt 0:00:04]} e6 {[%emt 0:00:06]} 3. Nc3 {[%emt 0:00:07]} Bb4 {[%emt 0:00:04]} 4. f3 {[%emt 0:00:09]} O-O {[%emt 0:00:39]} 5. a3 {[%emt 0:01:20]} Bxc3+ {[%emt 0:00:04]} 6. bxc3 {[%emt 0:00:05]} d6 {[%emt 0:00:20]} 7. e4 {[%emt 0:04:12]} e5 {[%emt 0:06:43]} 8. Bd3 {[%emt 0:08:04]} c5 {[%emt 0:07:02]} 9. Ne2 {[%emt 0:15:20]} Nc6 {[%emt 0:00:19][%cal Re5d4]} 10. Be3 {[%emt 0:03:16] E27: Nimzo-Indian: Sämisch: 5...0-0 6 f3.} b6 {[%emt 0:01:59]} 11. g4 {[%emt 0:06:13]} (11. d5 $11 Na5 12. Ng3) 11... Ba6 {[%emt 0:04:35]} 12. Ng3 {[%emt 0:01:02] [#]} (12. d5 $15 Na5 13. Ng3) 12... cxd4 $146 {[%emt 0:04:20]} ({Predecessor:} 12... Na5 13. Qe2 Qd7 14. a4 Rac8 15. d5 Rc7 16. h4 Rb8 17. O-O h5 18. Bg5 Nh7 19. Nxh5 Nxg5 20. hxg5 {0-1 (40) Bjarnasson,L-Penalver,O (2126) Copenhagen 2006}) 13. cxd4 {[%emt 0:00:08]} exd4 {[%emt 0:00:03]} (13... Nxd4 $6 14. Bxd4 exd4 15. Be2 $11) 14. Bf2 {[%emt 0:12:42]} Nd7 {[%emt 0:11:53]} 15. Nf5 {[%emt 0:03:11]} Nde5 {[%emt 0:03:07]} 16. f4 {[%emt 0:12:19]} (16. Bh4 $17 {keeps fighting.} Nxd3+ 17. Qxd3) 16... Nxc4 $2 {[%emt 0:01:58]} ({Better is} 16... Nxd3+ $19 17. Qxd3 d5 18. exd5 Re8+ 19. Kd1 Na5) 17. Bxc4 $4 {[%emt 0:02:51][%mdl 8192]} (17. Qa4 $11 N6a5 18. Bxd4) 17... Bxc4 $19 {[%emt 0:00:03]} 18. Bxd4 {[%emt 0:00:19]} Re8 {[%emt 0:02:11]} 19. Bxg7 $2 {[%emt 0:06:29]} (19. Qf3 Nxd4 20. Nxd4) 19... Rxe4+ {[%emt 0:03:45]} 20. Kd2 {[%emt 0:00:41]} Rxf4 {[%emt 0:07:06]} 21. Qe1 {[%emt 0:12:50] [#] Against Rf2+} (21. Bh6 $142 Rf2+ 22. Ke3 Re2+ 23. Kf4) 21... Rxf5 $1 {[%emt 0:04:14]} 22. gxf5 {[%emt 0:00:11]} Qg5+ {[%emt 0:03:17]} 23. Kc2 {[%emt 0:02:12]} Qxf5+ {[%emt 0:03:02]} (23... Qxg7 $2 24. Rg1 Bd3+ 25. Kxd3 Ne5+ 26. Kc2 $18) 24. Kb2 {[%emt 0:02:11]} Qb5+ {[%emt 0:01:11]} 25. Kc1 {[%emt 0:00:40]} Qg5+ {[%emt 0:00:04]} 26. Kc2 {[%emt 0:00:19]} Qg2+ {[%emt 0:03:30]} (26... Kxg7 27. Rg1 Qg6+ 28. Rxg6+ hxg6 29. Qg3 $11) 27. Kc1 {[%emt 0:00:47] Black must now prevent Rg1.} Na5 $2 {[%emt 0:02:21]} (27... Qxg7 28. Rg1 Qg6 29. Rxg6+ hxg6 30. Qe4 $11) (27... Bd3 {[%csl Gd3][%cal Rg2c2]} 28. Qd2 Qxg7 29. Qxd3 Qxa1+ 30. Qb1 Qxa3+ 31. Qb2 Qc5+ 32. Qc2 Nd4 33. Qxc5 dxc5 34. Rg1+ Kf8) 28. Rg1 {[%emt 0:01:40]} Nb3+ {[%emt 0:00:50]} 29. Kd1 {[%emt 0:00:01]} Qd5+ {[%emt 0:05:26]} (29... Qf3+ 30. Kc2 Be6 31. Qxe6 $1 (31. Bh6+ Kh8 $14) 31... fxe6 32. Bc3+ Kf7 33. Raf1 Qxf1 34. Rxf1+ Ke7 35. Kxb3 $14) 30. Kc2 {[%emt 0:01:14] White wants to mate with Bf6+.} Bd3+ {[%emt 0:00:01]} (30... Nxa1+ {gets mated.} 31. Bxa1+ Kf8 32. Bg7+ Kg8 33. Bf6+) (30... Qd3+ $2 31. Kb2 h5 32. Rg3 Qe2+ 33. Qxe2 Bxe2 34. Kxb3 $18) 31. Kb2 {[%emt 0:00:32]} Bg6 {[%emt 0:06:00]} 32. Bc3 $2 {[%emt 0:01:30][%mdl 8192] Now White is beyond hope.} Nc5 {[%emt 0:01:11]} 33. Qd1 {[%emt 0:02:05] Inhibits Qb3+.} Qc4 {[%emt 0:04:20]} 34. Rg4 {[%emt 0:01:23]} Qb5+ {[%emt 0:05:02]} (34... Nd3+ 35. Kc2 Ne5+ 36. Rxg6+ hxg6) 35. Ka2 {[%emt 0:00:39]} Re8 {[%emt 0:03:16] ( -> ...Re2+)} 36. Rb1 {[%emt 0:00:26] [#]} Qd7 {[%emt 0:03:59]} ({And not} 36... Re2+ 37. Ka1 Qa6 38. a4 $17) 37. Qd4 {[%emt 0:00:35][%csl Gc3][%cal Rd4g7] Prevents Re3.} Re5 {[%emt 0:00:02] Threatens to win with ...Qe6+.} 38. Qc4 {[%emt 0:00:54]} Qf5 {[%emt 0:00:43][%csl Gg6][%cal Rf5b1]} 39. Rxg6+ {[%emt 0:00:27]} (39. Rf1 $17 {was necessary.} Qc2+ 40. Bb2 Qxc4+ 41. Rxc4) 39... hxg6 {[%emt 0:00:05] The board is on fire.} 40. Rb2 $2 {[%emt 0:00:32]} (40. Bxe5 dxe5 41. Rd1) 40... Re4 {[%emt 0:05:32] Black is clearly winning.} 41. Re2 {[%emt 0:00:30]} Rxe2+ {[%emt 0:00:00]} (41... Rxc4 $2 {is a self mate.} 42. Re8+ Kh7 43. Rh8#) 42. Qxe2 {[%emt 0:00:01]} Qe6+ {[%emt 0:01:00]} 43. Qxe6 {[%emt 0:00:15]} fxe6 {[%emt 0:00:00] Weighted Error Value: White=1.03/Black=0.68} 0-1

[Event "2nd Late Dr Abul K C Chess-ch A 2022"]
[Site "Dhaka"]
[Date "2022.07.03"]
[Round "1.5"]
[White "Subrota, Biswas"]
[Black "Ghosh, Chanchal Kumer"]
[Result "1-0"]
[ECO "B97"]
[WhiteElo "2253"]
[BlackElo "2047"]
[Annotator "TA"]
[PlyCount "57"]
[EventDate "2022.07.03"]
[EventCountry "BAN"]
[SourceTitle "playchess.com"]
[Source "ChessBase"]
[SourceQuality "1"]
[TimeControl "5400+30"]

{[%evp 14,57,8,-25,57,54,60,20,82,88,104,0,0,0,362,376,377,357,364,370,370,358,370,381,455,448,479,296,453,423,458,486,564,502,541,515,585,574,1078,1078,983,951,2085,2053,5673,3734]} 1. e4 {[%emt 0:00:21]} c5 {[%emt 1:31:00]} 2. Nf3 {[%emt 0:01:09]} d6 {[%emt 0:00:00]} 3. d4 {[%emt 0:00:19]} cxd4 {[%emt 0:00:00]} 4. Nxd4 {[%emt 0:00:06]} Nf6 {[%emt 0:00:00]} 5. Nc3 {[%emt 0:00:02]} a6 {[%emt 0:00:00]} 6. Bg5 {[%emt 0:02:28]} e6 {[%emt 0:00:00]} 7. f4 {[%emt 0:00:08]} Qb6 {[%emt 0:00:00]} 8. Qd3 {[%emt 0:02:49]} Nbd7 {[%emt 0:00:00] B97: Sicilian Najdorf: Poisoned Pawn.} (8... Qxb2 $11 9. Rb1 Qa3) 9. O-O-O $14 {[%emt 0:00:20]} Be7 {[%emt 0:00:00] [#]} 10. g4 $146 {[%emt 0:01:45]} ({Predecessor:} 10. Qg3 Qc7 11. Bd3 b5 12. Rhe1 Bb7 13. e5 dxe5 14. fxe5 Nd5 15. Nxd5 Bxd5 16. Bxe7 Kxe7 {½-½ (92) Garcia Pantoja,R (2526)-Munkhzul,T (2278) Chess.com INT 2020}) 10... Nxg4 {[%emt 0:00:00]} (10... h6 $11 11. Bxf6 Bxf6) 11. Bxe7 $1 $16 {[%emt 0:04:47]} Nf2 {[%emt 0:00:00] [#]} (11... Kxe7 $2 12. Qg3 h5 13. h3 $18) 12. Qg3 {[%emt 0:00:01]} Nxd1 $11 {[%emt 0:00:00]} 13. Qxg7 {[%emt 0:00:03] Active counter play!} Kxe7 $2 {[%emt 0:00:00][%mdl 8192] Black is now going downhill.} 14. Nf5+ $1 $18 {[%emt 0:08:34]} ({Inferior is} 14. Nxd1 Rf8 $15) 14... Kd8 {[%emt 0:00:00][%cal Oh8e8] Strongly threatening ...Re8!} 15. Qxh8+ {[%emt 0:00:26]} Kc7 {[%emt 0:00:00] And now ...Nf2 would win.} 16. Kxd1 {[%emt 0:00:02] The board is on fire.} Qf2 {[%emt 0:00:00]} 17. Ng3 {[%emt 0:00:11]} Qxf4 {[%emt 0:00:00]} 18. Be2 {[%emt 0:04:01]} Qh6 {[%emt 0:00:00]} 19. Qd4 {[%emt 0:00:23]} b5 {[%emt 0:00:00]} 20. Qd2 {[%emt 0:01:01]} Qh4 {[%emt 0:00:00]} (20... Qxd2+ {was necessary.} 21. Kxd2 Kd8) 21. Kc1 {[%emt 0:00:27] White is clearly winning.} b4 {[%emt 0:00:00]} 22. Na4 {[%emt 0:01:57]} Bb7 {[%emt 0:00:00]} 23. Qxb4 {[%emt 0:00:24]} Bc6 {[%emt 0:00:00]} 24. Rf1 {[%emt 0:01:00]} a5 {[%emt 0:00:00]} 25. Qc3 {[%emt 0:00:40]} f5 {[%emt 0:00:00]} 26. Bb5 {[%emt 0:00:27]} Ne5 {[%emt 0:00:00]} 27. exf5 {[%emt 0:00:20]} Qxh2 {[%emt 0:00:00]} 28. Rh1 {[%emt 0:01:20]} Qf2 {[%emt 0:00:00]} 29. Bxc6 {[%emt 0:01:17] Weighted Error Value: White=0.26 (precise) /Black=0.76} 1-0